[Event "Titled Tuesday Blitz March 21 Early 2023"]
[White "Bodnaruk, Anastasia"]
[Black "Cherniaiev, Tykhon"]
[WhiteFideId "4181751"]
[BlackFideId "14182360"]
[WhiteElo "2310"]
[BlackElo "2450"]
[Result "1-0"]
[Round "09"]
[TimeControl "180+2"]
[Date "2023.03.21"]
[WhiteClock "0:00:10"]
[BlackClock "0:00:05"]

1. e4 {[%clk 0:02:52]}  e5 {[%clk 0:02:59]} 2. Nf3 {[%clk 0:02:47]}  Nc6 {[%clk 0:02:59]} 3. Bb5 {[%clk 0:02:47]}  Nf6 {[%clk 0:03:00]} 4. d3 {[%clk 0:02:47]}  Bc5 {[%clk 0:02:59]} 5. c3 {[%clk 0:02:47]}  O-O {[%clk 0:02:55]} 6. O-O {[%clk 0:02:44]}  d5 {[%clk 0:02:53]} 7. Bxc6 {[%clk 0:02:42]}  bxc6 {[%clk 0:02:52]} 8. Nxe5 {[%clk 0:02:43]}  dxe4 {[%clk 0:02:34]} 9. d4 {[%clk 0:02:40]}  Bd6 {[%clk 0:02:32]} 10. f4 {[%clk 0:02:17]}  c5 {[%clk 0:02:15]} 11. Be3 {[%clk 0:02:10]}  cxd4 {[%clk 0:02:14]} 12. Bxd4 {[%clk 0:02:05]}  Ba6 {[%clk 0:02:00]} 13. c4 {[%clk 0:01:56]}  c5 {[%clk 0:00:57]} 14. Bc3 {[%clk 0:01:54]}  Qe7 {[%clk 0:00:52]} 15. b3 {[%clk 0:01:44]}  Qe6 {[%clk 0:00:50]} 16. Qe2 {[%clk 0:01:38]}  Bb7 {[%clk 0:00:47]} 17. Nd2 {[%clk 0:01:35]}  Rad8 {[%clk 0:00:41]} 18. Rad1 {[%clk 0:01:32]}  Bc7 {[%clk 0:00:39]} 19. Rfe1 {[%clk 0:01:25]}  h6 {[%clk 0:00:37]} 20. h3 {[%clk 0:01:14]}  Rfe8 {[%clk 0:00:33]} 21. Nf1 {[%clk 0:01:08]}  Nd7 {[%clk 0:00:26]} 22. Nxd7 {[%clk 0:00:45]}  Rxd7 {[%clk 0:00:27]} 23. Rxd7 {[%clk 0:00:45]}  Qxd7 {[%clk 0:00:28]} 24. Qe3 {[%clk 0:00:38]}  Rd8 {[%clk 0:00:27]} 25. Nd2 {[%clk 0:00:30]}  Qd3 {[%clk 0:00:24]} 26. g3 {[%clk 0:00:29]}  Qc2 {[%clk 0:00:20]} 27. Nb1 {[%clk 0:00:18]}  Rd3 {[%clk 0:00:17]} 28. Qf2 {[%clk 0:00:18]}  Rxc3 {[%clk 0:00:14]} 29. Nxc3 {[%clk 0:00:17]}  Qxc3 {[%clk 0:00:15]} 30. Qe3 {[%clk 0:00:17]}  Qb2 {[%clk 0:00:11]} 31. Re2 {[%clk 0:00:17]}  Qd4 {[%clk 0:00:10]} 32. Kf2 {[%clk 0:00:15]}  Ba5 {[%clk 0:00:09]} 33. f5 {[%clk 0:00:13]}  f6 {[%clk 0:00:09]} 34. g4 {[%clk 0:00:12]}  Bc7 {[%clk 0:00:08]} 35. Rd2 {[%clk 0:00:12]}  Qe5 {[%clk 0:00:03]} 36. Ke1 {[%clk 0:00:12]}  Qg3+ {[%clk 0:00:03]} 37. Qxg3 {[%clk 0:00:11]}  Bxg3+ {[%clk 0:00:04]} 38. Ke2 {[%clk 0:00:12]}  Bc6 {[%clk 0:00:02]} 39. Rd8+ {[%clk 0:00:12]}  Kf7 {[%clk 0:00:03]} 40. Rc8 {[%clk 0:00:12]}  Bd7 {[%clk 0:00:03]} 41. Rxc5 {[%clk 0:00:12]}  Be5 {[%clk 0:00:03]} 42. Rd5 {[%clk 0:00:11]}  Bc6 {[%clk 0:00:03]} 43. Rd8 {[%clk 0:00:11]}  Ke7 {[%clk 0:00:03]} 44. Rg8 {[%clk 0:00:11]}  Kf7 {[%clk 0:00:03]} 45. Rd8 {[%clk 0:00:11]}  Ke7 {[%clk 0:00:03]} 46. Rd1 {[%clk 0:00:10]}  Bb7 {[%clk 0:00:02]} 47. Ke3 {[%clk 0:00:10]}  Bd6 {[%clk 0:00:02]} 48. Kd4 {[%clk 0:00:09]}  Bc7 {[%clk 0:00:02]} 49. b4 {[%clk 0:00:09]}  Bf4 {[%clk 0:00:02]} 50. c5 {[%clk 0:00:09]}  Be5+ {[%clk 0:00:02]} 51. Kc4 {[%clk 0:00:09]}  Kf7 {[%clk 0:00:01]} 52. b5 {[%clk 0:00:10]}  Ke8 {[%clk 0:00:01]} 53. c6 {[%clk 0:00:10]}  Bc8 {[%clk 0:00:02]} 54. Re1 {[%clk 0:00:10]}  h5 {[%clk 0:00:02]} 55. Rxe4 {[%clk 0:00:10]}  hxg4 {[%clk 0:00:03]} 56. hxg4 {[%clk 0:00:10]}  Kd8 {[%clk 0:00:03]} 57. Kd5 {[%clk 0:00:10]}  Kc7 {[%clk 0:00:04]} 58. a4 {[%clk 0:00:10]}  a6 {[%clk 0:00:04]} 59. Rc4 {[%clk 0:00:09]}  axb5 {[%clk 0:00:05]} 60. axb5 {[%clk 0:00:10]}  Kb6 {[%clk 0:00:05]} 61. Rb4 {[%clk 0:00:10]}  Bc3 {[%clk 0:00:05]} 62. Rb3 {[%clk 0:00:10]}  Be5 {[%clk 0:00:06]} 63. Rb1 {[%clk 0:00:08]}  Bc7 {[%clk 0:00:06]} 64. Kc4 {[%clk 0:00:09]}  Be5 {[%clk 0:00:06]} 65. Rd1 {[%clk 0:00:09]}  Kc7 {[%clk 0:00:06]} 66. Rh1 {[%clk 0:00:09]}  Kb6 {[%clk 0:00:07]} 67. Rh7 {[%clk 0:00:09]}  g6 {[%clk 0:00:05]} 68. Rh8 {[%clk 0:00:08]}  Kc7 {[%clk 0:00:04]} 69. Rxc8+ {[%clk 0:00:08]}  Kxc8 {[%clk 0:00:05]} 70. fxg6 {[%clk 0:00:08]}  f5 {[%clk 0:00:05]} 71. gxf5 {[%clk 0:00:09]}  Kc7 {[%clk 0:00:05]} 72. Kc5 {[%clk 0:00:10]}  Bf6 {[%clk 0:00:05]} 73. b6+ {[%clk 0:00:10]}  Kc8 {[%clk 0:00:05]} 74. c7 {[%clk 0:00:10]}  Kd7 {[%clk 0:00:04]} 75. Kd5 {[%clk 0:00:10]}  Bg7 {[%clk 0:00:04]} 76. Ke4 {[%clk 0:00:10]}  Bf6 {[%clk 0:00:03]} 77. Kf4 {[%clk 0:00:11]}  Bd4 {[%clk 0:00:03]} 78. Kg5 {[%clk 0:00:11]}  Be3+ {[%clk 0:00:03]} 79. Kf6 {[%clk 0:00:12]}  Bd4+ {[%clk 0:00:04]} 80. Kf7 {[%clk 0:00:12]}  Bxb6 {[%clk 0:00:04]} 81. g7 {[%clk 0:00:12]}  Bxc7 {[%clk 0:00:05]} 82. g8=Q {[%clk 0:00:12]}  Bd6 {[%clk 0:00:04]} 83. Qe8+ {[%clk 0:00:12]}  Kc7 {[%clk 0:00:03]} 84. Ke6 {[%clk 0:00:11]}  Bc5 {[%clk 0:00:03]} 85. Qd7+ {[%clk 0:00:11]}  Kb6 {[%clk 0:00:04]} 86. Kd5 {[%clk 0:00:11]}  Bf2 {[%clk 0:00:04]} 87. f6 {[%clk 0:00:12]}  Ka5 {[%clk 0:00:04]} 88. f7 {[%clk 0:00:12]}  Bc5 {[%clk 0:00:03]} 89. Qc7+ {[%clk 0:00:10]}  Ka6 {[%clk 0:00:04]} 90. Qc6+ {[%clk 0:00:10]}  Bb6 {[%clk 0:00:04]} 91. f8=Q {[%clk 0:00:10]}  Ka5 {[%clk 0:00:05]} 92. Qa3# {[%clk 0:00:10]} 1-0


[Site "https://www.chess.com"]

[Event "Titled Tuesday Blitz March 21 Early 2023"]
[White "Skvortsov, Andrei"]
[Black "The_Sherman_Variation"]
[WhiteFideId "24108600"]
[WhiteElo "2259"]
[BlackElo "2557"]
[Result "1/2-1/2"]
[Round "09"]
[TimeControl "180+2"]
[Date "2023.03.21"]
[WhiteClock "0:00:13"]
[BlackClock "0:00:15"]

1. d4 {[%clk 0:03:00]}  Nf6 {[%clk 0:02:59]} 2. Nf3 {[%clk 0:02:59]}  e6 {[%clk 0:02:58]} 3. c4 {[%clk 0:02:58]}  c5 {[%clk 0:02:57]} 4. Nc3 {[%clk 0:02:55]}  Nc6 {[%clk 0:02:56]} 5. d5 {[%clk 0:02:55]}  exd5 {[%clk 0:02:23]} 6. cxd5 {[%clk 0:02:50]}  Nb8 {[%clk 0:02:18]} 7. e4 {[%clk 0:02:39]}  d6 {[%clk 0:02:16]} 8. Bb5+ {[%clk 0:02:37]}  Bd7 {[%clk 0:02:15]} 9. Be2 {[%clk 0:02:37]}  g6 {[%clk 0:02:14]} 10. Bf4 {[%clk 0:02:36]}  Bg4 {[%clk 0:02:11]} 11. O-O {[%clk 0:02:26]}  a6 {[%clk 0:02:07]} 12. a4 {[%clk 0:02:23]}  Bg7 {[%clk 0:02:01]} 13. Qb3 {[%clk 0:02:19]}  Qc7 {[%clk 0:01:57]} 14. e5 {[%clk 0:02:16]}  Nh5 {[%clk 0:01:48]} 15. exd6 {[%clk 0:02:15]}  Qd7 {[%clk 0:01:48]} 16. Ne5 {[%clk 0:02:02]}  Bxe5 {[%clk 0:01:39]} 17. Bxg4 {[%clk 0:02:00]}  Qxg4 {[%clk 0:01:34]} 18. Bxe5 {[%clk 0:02:00]}  O-O {[%clk 0:01:34]} 19. Qxb7 {[%clk 0:01:56]}  Nd7 {[%clk 0:01:34]} 20. h3 {[%clk 0:01:49]}  Qf5 {[%clk 0:01:28]} 21. Bh2 {[%clk 0:01:50]}  Nhf6 {[%clk 0:01:25]} 22. Qb3 {[%clk 0:01:44]}  Rab8 {[%clk 0:01:19]} 23. Qd1 {[%clk 0:01:40]}  Rxb2 {[%clk 0:01:17]} 24. Rb1 {[%clk 0:01:39]}  Rfb8 {[%clk 0:01:14]} 25. Rxb2 {[%clk 0:01:38]}  Rxb2 {[%clk 0:01:15]} 26. Qc1 {[%clk 0:01:32]}  Rb4 {[%clk 0:01:06]} 27. Qe3 {[%clk 0:01:30]}  Kg7 {[%clk 0:00:59]} 28. Qe2 {[%clk 0:01:24]}  a5 {[%clk 0:00:52]} 29. g4 {[%clk 0:01:08]}  Qg5 {[%clk 0:00:37]} 30. Bg3 {[%clk 0:01:08]}  Nxd5 {[%clk 0:00:26]} 31. Ne4 {[%clk 0:00:55]}  Qd8 {[%clk 0:00:24]} 32. Nxc5 {[%clk 0:00:51]}  Nxc5 {[%clk 0:00:20]} 33. Qe5+ {[%clk 0:00:51]}  Kg8 {[%clk 0:00:20]} 34. Qxd5 {[%clk 0:00:51]}  Nxa4 {[%clk 0:00:20]} 35. Re1 {[%clk 0:00:46]}  Nb6 {[%clk 0:00:20]} 36. Qc6 {[%clk 0:00:46]}  Nd7 {[%clk 0:00:20]} 37. Re7 {[%clk 0:00:37]}  Nf6 {[%clk 0:00:18]} 38. Be5 {[%clk 0:00:34]}  Rb6 {[%clk 0:00:16]} 39. Qf3 {[%clk 0:00:17]}  Rxd6 {[%clk 0:00:14]} 40. Bxd6 {[%clk 0:00:14]}  Qxd6 {[%clk 0:00:15]} 41. Ra7 {[%clk 0:00:13]}  Kg7 {[%clk 0:00:16]} 42. Rxa5 {[%clk 0:00:12]}  Nd7 {[%clk 0:00:14]} 43. Kg2 {[%clk 0:00:11]}  Ne5 {[%clk 0:00:14]} 44. Qe4 {[%clk 0:00:12]}  f6 {[%clk 0:00:14]} 45. Ra7+ {[%clk 0:00:12]}  Nf7 {[%clk 0:00:13]} 46. Qb7 {[%clk 0:00:12]}  Qe6 {[%clk 0:00:13]} 47. Ra6 {[%clk 0:00:11]}  Qc4 {[%clk 0:00:11]} 48. Qc6 {[%clk 0:00:11]}  Qd4 {[%clk 0:00:11]} 49. Qf3 {[%clk 0:00:10]}  Qe5 {[%clk 0:00:11]} 50. Rc6 {[%clk 0:00:10]}  h5 {[%clk 0:00:12]} 51. gxh5 {[%clk 0:00:10]}  gxh5 {[%clk 0:00:12]} 52. Qg3+ {[%clk 0:00:10]}  Qxg3+ {[%clk 0:00:12]} 53. fxg3 {[%clk 0:00:10]}  Kg6 {[%clk 0:00:13]} 54. Rc5 {[%clk 0:00:10]}  Ne5 {[%clk 0:00:13]} 55. Ra5 {[%clk 0:00:11]}  Nd3 {[%clk 0:00:13]} 56. Kf3 {[%clk 0:00:11]}  Ne5+ {[%clk 0:00:14]} 57. Ke4 {[%clk 0:00:11]}  Nc4 {[%clk 0:00:14]} 58. Rc5 {[%clk 0:00:11]}  Nd2+ {[%clk 0:00:15]} 59. Kf4 {[%clk 0:00:11]}  Nb3 {[%clk 0:00:14]} 60. Rc3 {[%clk 0:00:11]}  Nd4 {[%clk 0:00:14]} 61. Ke4 {[%clk 0:00:11]}  Ne6 {[%clk 0:00:14]} 62. Kf3 {[%clk 0:00:11]}  Nd4+ {[%clk 0:00:14]} 63. Kg2 {[%clk 0:00:11]}  Ne6 {[%clk 0:00:15]} 64. Rc4 {[%clk 0:00:12]}  Ng5 {[%clk 0:00:16]} 65. Rc6 {[%clk 0:00:09]}  Ne4 {[%clk 0:00:15]} 66. h4 {[%clk 0:00:09]}  Nd2 {[%clk 0:00:15]} 67. Re6 {[%clk 0:00:08]}  Nc4 {[%clk 0:00:15]} 68. Kf3 {[%clk 0:00:09]}  Ne5+ {[%clk 0:00:16]} 69. Ke4 {[%clk 0:00:06]}  Ng4 {[%clk 0:00:15]} 70. Ra6 {[%clk 0:00:06]}  Nf2+ {[%clk 0:00:16]} 71. Kf3 {[%clk 0:00:07]}  Ng4 {[%clk 0:00:16]} 72. Ra5 {[%clk 0:00:06]}  Ne5+ {[%clk 0:00:16]} 73. Kf4 {[%clk 0:00:07]}  Nd3+ {[%clk 0:00:17]} 74. Ke4 {[%clk 0:00:07]}  Nf2+ {[%clk 0:00:17]} 75. Ke3 {[%clk 0:00:07]}  Ng4+ {[%clk 0:00:17]} 76. Kf4 {[%clk 0:00:08]}  Nf2 {[%clk 0:00:18]} 77. Rd5 {[%clk 0:00:07]}  Nh3+ {[%clk 0:00:18]} 78. Ke4 {[%clk 0:00:07]}  Nf2+ {[%clk 0:00:18]} 79. Ke3 {[%clk 0:00:07]}  Ng4+ {[%clk 0:00:18]} 80. Kd4 {[%clk 0:00:08]}  Nf2 {[%clk 0:00:18]} 81. Ra5 {[%clk 0:00:07]}  Ng4 {[%clk 0:00:19]} 82. Kd5 {[%clk 0:00:07]}  Ne3+ {[%clk 0:00:19]} 83. Ke6 {[%clk 0:00:07]}  Nf1 {[%clk 0:00:18]} 84. Ra3 {[%clk 0:00:08]}  Nd2 {[%clk 0:00:18]} 85. Rd3 {[%clk 0:00:06]}  Ne4 {[%clk 0:00:16]} 86. Rf3 {[%clk 0:00:06]}  Nc5+ {[%clk 0:00:15]} 87. Ke7 {[%clk 0:00:06]}  Ne4 {[%clk 0:00:15]} 88. Rf4 {[%clk 0:00:05]}  f5 {[%clk 0:00:15]} 89. Ke6 {[%clk 0:00:05]}  Nxg3 {[%clk 0:00:15]} 90. Ke5 {[%clk 0:00:06]}  Ne2 {[%clk 0:00:11]} 91. Rxf5 {[%clk 0:00:05]}  Kh6 {[%clk 0:00:11]} 92. Rg5 {[%clk 0:00:04]}  Nc3 {[%clk 0:00:11]} 93. Rg3 {[%clk 0:00:02]}  Ne2 {[%clk 0:00:11]} 94. Rg2 {[%clk 0:00:02]}  Nc3 {[%clk 0:00:11]} 95. Rc2 {[%clk 0:00:03]}  Nb5 {[%clk 0:00:10]} 96. Rc6+ {[%clk 0:00:04]}  Kg7 {[%clk 0:00:09]} 97. Kf5 {[%clk 0:00:04]}  Nd4+ {[%clk 0:00:10]} 98. Kg5 {[%clk 0:00:04]}  Nxc6 {[%clk 0:00:11]} 99. Kxh5 {[%clk 0:00:05]}  Kh7 {[%clk 0:00:11]} 100. Kg4 {[%clk 0:00:06]}  Ne7 {[%clk 0:00:11]} 101. h5 {[%clk 0:00:07]}  Ng8 {[%clk 0:00:12]} 102. Kg5 {[%clk 0:00:08]}  Nh6 {[%clk 0:00:13]} 103. Kh4 {[%clk 0:00:08]}  Kg7 {[%clk 0:00:13]} 104. Kg5 {[%clk 0:00:09]}  Kh7 {[%clk 0:00:13]} 105. Kh4 {[%clk 0:00:10]}  Ng8 {[%clk 0:00:14]} 106. Kg5 {[%clk 0:00:11]}  Kg7 {[%clk 0:00:14]} 107. Kh4 {[%clk 0:00:12]}  Kh6 {[%clk 0:00:14]} 108. Kg4 {[%clk 0:00:12]}  Nf6+ {[%clk 0:00:15]} 109. Kh4 {[%clk 0:00:13]}  Nxh5 {[%clk 0:00:15]} 1/2-1/2


[Site "https://www.chess.com"]

[Event "Titled Tuesday Blitz March 21 Early 2023"]
[White "Karthik Rajaa"]
[Black "Reprintsev, Alexander"]
[WhiteFideId "25035215"]
[BlackFideId "14100541"]
[WhiteElo "2215"]
[BlackElo "2229"]
[Result "1/2-1/2"]
[Round "09"]
[TimeControl "180+2"]
[Date "2023.03.21"]
[WhiteClock "0:00:08"]
[BlackClock "0:00:14"]

1. Nf3 {[%clk 0:03:00]}  d5 {[%clk 0:02:58]} 2. c4 {[%clk 0:02:59]}  dxc4 {[%clk 0:02:57]} 3. Na3 {[%clk 0:02:59]}  c5 {[%clk 0:02:37]} 4. Nxc4 {[%clk 0:02:56]}  Nc6 {[%clk 0:02:37]} 5. g3 {[%clk 0:02:49]}  g6 {[%clk 0:02:36]} 6. Bg2 {[%clk 0:02:47]}  Bg7 {[%clk 0:02:37]} 7. O-O {[%clk 0:02:47]}  Nf6 {[%clk 0:02:37]} 8. b3 {[%clk 0:02:46]}  Nd5 {[%clk 0:02:33]} 9. Bb2 {[%clk 0:02:46]}  Bxb2 {[%clk 0:02:31]} 10. Nxb2 {[%clk 0:02:47]}  e5 {[%clk 0:02:26]} 11. Rc1 {[%clk 0:02:27]}  b6 {[%clk 0:02:22]} 12. a3 {[%clk 0:02:10]}  Bb7 {[%clk 0:02:18]} 13. e3 {[%clk 0:02:02]}  e4 {[%clk 0:02:13]} 14. Ne1 {[%clk 0:02:00]}  Nf6 {[%clk 0:02:06]} 15. d3 {[%clk 0:01:56]}  Qe7 {[%clk 0:01:54]} 16. Qc2 {[%clk 0:01:51]}  exd3 {[%clk 0:01:49]} 17. Nexd3 {[%clk 0:01:52]}  O-O {[%clk 0:01:47]} 18. b4 {[%clk 0:01:49]}  cxb4 {[%clk 0:01:23]} 19. Bxc6 {[%clk 0:01:03]}  bxa3 {[%clk 0:01:20]} 20. Nd1 {[%clk 0:01:03]}  Rac8 {[%clk 0:01:19]} 21. Qa4 {[%clk 0:01:03]}  Bxc6 {[%clk 0:01:16]} 22. Rxc6 {[%clk 0:01:02]}  Qd7 {[%clk 0:01:09]} 23. Ne5 {[%clk 0:01:01]}  Qe7 {[%clk 0:01:03]} 24. Qc4 {[%clk 0:00:31]}  Rcd8 {[%clk 0:00:50]} 25. Nf3 {[%clk 0:00:22]}  Qe4 {[%clk 0:00:39]} 26. Nd4 {[%clk 0:00:19]}  Nd5 {[%clk 0:00:28]} 27. Nc3 {[%clk 0:00:16]}  Nxc3 {[%clk 0:00:14]} 28. Qxc3 {[%clk 0:00:17]}  Rd7 {[%clk 0:00:13]} 29. Qxa3 {[%clk 0:00:16]}  Rxd4 {[%clk 0:00:11]} 30. exd4 {[%clk 0:00:14]}  Qxc6 {[%clk 0:00:12]} 31. Qxa7 {[%clk 0:00:14]}  Qd6 {[%clk 0:00:11]} 32. Rd1 {[%clk 0:00:14]}  Rd8 {[%clk 0:00:12]} 33. d5 {[%clk 0:00:14]}  Kg7 {[%clk 0:00:11]} 34. Qb7 {[%clk 0:00:14]}  Qc5 {[%clk 0:00:11]} 35. h3 {[%clk 0:00:12]}  Rd6 {[%clk 0:00:11]} 36. h4 {[%clk 0:00:11]}  h5 {[%clk 0:00:12]} 37. Qe7 {[%clk 0:00:11]}  Rxd5 {[%clk 0:00:11]} 38. Re1 {[%clk 0:00:07]}  Qxe7 {[%clk 0:00:10]} 39. Rxe7 {[%clk 0:00:08]}  Rd6 {[%clk 0:00:09]} 40. Rb7 {[%clk 0:00:09]}  Kf6 {[%clk 0:00:10]} 41. Kg2 {[%clk 0:00:09]}  Ke6 {[%clk 0:00:11]} 42. Kf3 {[%clk 0:00:09]}  f6 {[%clk 0:00:11]} 43. Rg7 {[%clk 0:00:09]}  Kf5 {[%clk 0:00:11]} 44. Rb7 {[%clk 0:00:09]}  Rd3+ {[%clk 0:00:11]} 45. Ke2 {[%clk 0:00:09]}  Rb3 {[%clk 0:00:11]} 46. Rb8 {[%clk 0:00:05]}  g5 {[%clk 0:00:12]} 47. hxg5 {[%clk 0:00:05]}  fxg5 {[%clk 0:00:12]} 48. Rh8 {[%clk 0:00:06]}  Kg4 {[%clk 0:00:12]} 49. Kf1 {[%clk 0:00:04]}  h4 {[%clk 0:00:12]} 50. gxh4 {[%clk 0:00:04]}  gxh4 {[%clk 0:00:13]} 51. Kg2 {[%clk 0:00:05]}  h3+ {[%clk 0:00:13]} 52. Kh2 {[%clk 0:00:06]}  b5 {[%clk 0:00:13]} 53. Rf8 {[%clk 0:00:06]}  Kg5 {[%clk 0:00:13]} 54. f3 {[%clk 0:00:04]}  b4 {[%clk 0:00:10]} 55. Kxh3 {[%clk 0:00:05]}  Rb1 {[%clk 0:00:11]} 56. Kg3 {[%clk 0:00:05]}  b3 {[%clk 0:00:10]} 57. Rb8 {[%clk 0:00:06]}  Kf5 {[%clk 0:00:09]} 58. Kg2 {[%clk 0:00:06]}  Ke5 {[%clk 0:00:10]} 59. Rb7 {[%clk 0:00:05]}  Kd4 {[%clk 0:00:10]} 60. f4 {[%clk 0:00:05]}  Kc3 {[%clk 0:00:11]} 61. f5 {[%clk 0:00:05]}  Rd1 {[%clk 0:00:11]} 62. f6 {[%clk 0:00:05]}  Rd8 {[%clk 0:00:12]} 63. f7 {[%clk 0:00:06]}  Rf8 {[%clk 0:00:12]} 64. Kg3 {[%clk 0:00:06]}  b2 {[%clk 0:00:12]} 65. Rc7+ {[%clk 0:00:06]}  Kd2 {[%clk 0:00:12]} 66. Rd7+ {[%clk 0:00:07]}  Kc2 {[%clk 0:00:12]} 67. Rc7+ {[%clk 0:00:07]}  Kd2 {[%clk 0:00:13]} 68. Rd7+ {[%clk 0:00:08]}  Kc2 {[%clk 0:00:13]} 69. Rc7+ {[%clk 0:00:08]}  Kd2 {[%clk 0:00:14]} 1/2-1/2


[Site "https://www.chess.com"]

[Event "Titled Tuesday Blitz March 21 Early 2023"]
[White "Belozerov, Andrei"]
[Black "Guzman Moneo, Alberto"]
[WhiteFideId "4120213"]
[BlackFideId "2209616"]
[WhiteElo "2360"]
[BlackElo "2157"]
[Result "1-0"]
[Round "09"]
[TimeControl "180+2"]
[Date "2023.03.21"]
[WhiteClock "0:00:23"]
[BlackClock "0:00:17"]

1. e4 {[%clk 0:02:59]}  c5 {[%clk 0:02:59]} 2. Nf3 {[%clk 0:02:59]}  Nc6 {[%clk 0:02:59]} 3. Bb5 {[%clk 0:02:57]}  Nf6 {[%clk 0:02:58]} 4. Nc3 {[%clk 0:02:52]}  d5 {[%clk 0:02:50]} 5. exd5 {[%clk 0:02:43]}  Nxd5 {[%clk 0:02:48]} 6. O-O {[%clk 0:02:43]}  Bg4 {[%clk 0:02:40]} 7. h3 {[%clk 0:02:41]}  Bh5 {[%clk 0:02:35]} 8. g4 {[%clk 0:02:22]}  Bg6 {[%clk 0:02:34]} 9. Ne5 {[%clk 0:02:22]}  Rc8 {[%clk 0:02:33]} 10. d4 {[%clk 0:02:18]}  Nxc3 {[%clk 0:02:26]} 11. bxc3 {[%clk 0:02:16]}  e6 {[%clk 0:02:23]} 12. f4 {[%clk 0:02:13]}  f6 {[%clk 0:02:00]} 13. Nxc6 {[%clk 0:01:46]}  bxc6 {[%clk 0:01:59]} 14. Bc4 {[%clk 0:01:46]}  Bf7 {[%clk 0:01:53]} 15. Re1 {[%clk 0:01:45]}  Qd7 {[%clk 0:01:35]} 16. Bxe6 {[%clk 0:01:22]}  Bxe6 {[%clk 0:01:35]} 17. f5 {[%clk 0:01:22]}  Be7 {[%clk 0:01:30]} 18. Rxe6 {[%clk 0:01:18]}  O-O {[%clk 0:01:29]} 19. Bf4 {[%clk 0:01:18]}  cxd4 {[%clk 0:01:16]} 20. Qxd4 {[%clk 0:01:16]}  Rfd8 {[%clk 0:01:11]} 21. Rae1 {[%clk 0:01:11]}  Bf8 {[%clk 0:01:08]} 22. Qe4 {[%clk 0:00:59]}  Qd5 {[%clk 0:00:59]} 23. c4 {[%clk 0:00:56]}  Qxe4 {[%clk 0:00:52]} 24. R1xe4 {[%clk 0:00:56]}  Rd1+ {[%clk 0:00:48]} 25. Kg2 {[%clk 0:00:54]}  Kf7 {[%clk 0:00:47]} 26. h4 {[%clk 0:00:34]}  h6 {[%clk 0:00:44]} 27. g5 {[%clk 0:00:32]}  hxg5 {[%clk 0:00:44]} 28. hxg5 {[%clk 0:00:33]}  fxg5 {[%clk 0:00:41]} 29. Bxg5 {[%clk 0:00:34]}  Ra1 {[%clk 0:00:34]} 30. Rd4 {[%clk 0:00:33]}  Rxa2 {[%clk 0:00:31]} 31. Rd7+ {[%clk 0:00:33]}  Kg8 {[%clk 0:00:31]} 32. Rg6 {[%clk 0:00:30]}  Rxc2+ {[%clk 0:00:28]} 33. Kf3 {[%clk 0:00:30]}  Rc3+ {[%clk 0:00:25]} 34. Ke2 {[%clk 0:00:24]}  Re8+ {[%clk 0:00:17]} 35. Kd2 {[%clk 0:00:23]} 1-0


[Site "https://www.chess.com"]

[Event "Titled Tuesday Blitz March 21 Early 2023"]
[White "Amilal Munkhdalai"]
[Black "Savitha Shri B"]
[WhiteFideId "4903250"]
[BlackFideId "35061887"]
[WhiteElo "2293"]
[BlackElo "2191"]
[Result "1-0"]
[Round "09"]
[TimeControl "180+2"]
[Date "2023.03.21"]
[WhiteClock "0:01:24"]
[BlackClock "0:00:20"]

1. e4 {[%clk 0:02:57]}  c5 {[%clk 0:02:59]} 2. Nf3 {[%clk 0:02:57]}  e6 {[%clk 0:03:00]} 3. d4 {[%clk 0:02:57]}  cxd4 {[%clk 0:03:01]} 4. Nxd4 {[%clk 0:02:57]}  a6 {[%clk 0:03:02]} 5. c4 {[%clk 0:02:54]}  Qc7 {[%clk 0:03:02]} 6. Nc3 {[%clk 0:02:53]}  Nc6 {[%clk 0:03:02]} 7. Be3 {[%clk 0:02:53]}  Nf6 {[%clk 0:03:01]} 8. a3 {[%clk 0:02:53]}  Be7 {[%clk 0:03:00]} 9. Be2 {[%clk 0:02:53]}  b6 {[%clk 0:02:58]} 10. O-O {[%clk 0:02:53]}  Bb7 {[%clk 0:02:58]} 11. f3 {[%clk 0:02:53]}  O-O {[%clk 0:02:58]} 12. Qe1 {[%clk 0:02:50]}  Bc5 {[%clk 0:02:54]} 13. Qf2 {[%clk 0:02:50]}  Rad8 {[%clk 0:02:39]} 14. b4 {[%clk 0:02:44]}  Bxd4 {[%clk 0:02:34]} 15. Bxd4 {[%clk 0:02:45]}  Nxd4 {[%clk 0:02:31]} 16. Qxd4 {[%clk 0:02:44]}  d5 {[%clk 0:02:32]} 17. cxd5 {[%clk 0:02:42]}  exd5 {[%clk 0:02:33]} 18. e5 {[%clk 0:02:42]}  Nd7 {[%clk 0:02:17]} 19. f4 {[%clk 0:02:42]}  Nb8 {[%clk 0:02:17]} 20. Rac1 {[%clk 0:02:34]}  Nc6 {[%clk 0:02:16]} 21. Qd2 {[%clk 0:02:30]}  Qb8 {[%clk 0:01:57]} 22. Bf3 {[%clk 0:02:22]}  Ne7 {[%clk 0:01:46]} 23. Na4 {[%clk 0:02:19]}  Bc6 {[%clk 0:01:41]} 24. Nb2 {[%clk 0:02:16]}  Ba8 {[%clk 0:01:31]} 25. Kh1 {[%clk 0:02:12]}  f6 {[%clk 0:01:23]} 26. Nd3 {[%clk 0:02:07]}  fxe5 {[%clk 0:01:15]} 27. Nxe5 {[%clk 0:02:05]}  Qd6 {[%clk 0:01:10]} 28. g3 {[%clk 0:01:59]}  d4 {[%clk 0:01:09]} 29. Bxa8 {[%clk 0:01:57]}  Rxa8 {[%clk 0:01:10]} 30. Qa2+ {[%clk 0:01:54]}  Qd5+ {[%clk 0:00:32]} 31. Qxd5+ {[%clk 0:01:53]}  Nxd5 {[%clk 0:00:33]} 32. Rfd1 {[%clk 0:01:53]}  Nc3 {[%clk 0:00:30]} 33. Rd3 {[%clk 0:01:51]}  a5 {[%clk 0:00:20]} 34. Re1 {[%clk 0:01:41]}  axb4 {[%clk 0:00:20]} 35. axb4 {[%clk 0:01:41]}  Ra4 {[%clk 0:00:20]} 36. Rxd4 {[%clk 0:01:38]}  Na2 {[%clk 0:00:21]} 37. Nc6 {[%clk 0:01:24]}  Rc8 {[%clk 0:00:20]} 38. Ne7+ {[%clk 0:01:24]} 1-0


[Site "https://www.chess.com"]

[Event "Titled Tuesday Blitz March 21 Early 2023"]
[White "Pniaczek, Marek"]
[Black "Papasimakopoulos, Alexandros"]
[WhiteFideId "21800421"]
[BlackFideId "4244125"]
[WhiteElo "2138"]
[BlackElo "2359"]
[Result "0-1"]
[Round "09"]
[TimeControl "180+2"]
[Date "2023.03.21"]
[WhiteClock "0:00:03"]
[BlackClock "0:00:41"]

1. e4 {[%clk 0:03:00]}  e6 {[%clk 0:02:57]} 2. d4 {[%clk 0:02:58]}  d5 {[%clk 0:02:57]} 3. Nd2 {[%clk 0:02:59]}  Nf6 {[%clk 0:02:57]} 4. e5 {[%clk 0:02:59]}  Nfd7 {[%clk 0:02:57]} 5. Bd3 {[%clk 0:02:59]}  c5 {[%clk 0:02:56]} 6. c3 {[%clk 0:03:00]}  Nc6 {[%clk 0:02:56]} 7. Ne2 {[%clk 0:03:00]}  cxd4 {[%clk 0:02:57]} 8. cxd4 {[%clk 0:03:00]}  f6 {[%clk 0:02:58]} 9. exf6 {[%clk 0:03:01]}  Nxf6 {[%clk 0:02:59]} 10. Nf3 {[%clk 0:03:01]}  Bd6 {[%clk 0:03:00]} 11. O-O {[%clk 0:03:01]}  Qc7 {[%clk 0:03:00]} 12. h3 {[%clk 0:02:56]}  O-O {[%clk 0:03:00]} 13. Be3 {[%clk 0:02:48]}  Bd7 {[%clk 0:02:59]} 14. Rc1 {[%clk 0:02:48]}  Be8 {[%clk 0:02:59]} 15. Nc3 {[%clk 0:02:45]}  a6 {[%clk 0:02:59]} 16. Na4 {[%clk 0:02:42]}  Bh5 {[%clk 0:02:54]} 17. Be2 {[%clk 0:02:40]}  Ne4 {[%clk 0:02:52]} 18. Nd2 {[%clk 0:02:33]}  Bxe2 {[%clk 0:02:22]} 19. Qxe2 {[%clk 0:02:31]}  Nxd2 {[%clk 0:02:21]} 20. Qxd2 {[%clk 0:02:31]}  Rf6 {[%clk 0:02:21]} 21. Nc5 {[%clk 0:02:28]}  Raf8 {[%clk 0:02:16]} 22. Rc3 {[%clk 0:02:20]}  Kh8 {[%clk 0:01:54]} 23. Rfc1 {[%clk 0:02:18]}  e5 {[%clk 0:01:51]} 24. dxe5 {[%clk 0:01:43]}  Bxe5 {[%clk 0:01:48]} 25. Rb3 {[%clk 0:01:37]}  d4 {[%clk 0:01:21]} 26. Bg5 {[%clk 0:01:35]}  Rg6 {[%clk 0:01:21]} 27. Rxb7 {[%clk 0:01:24]}  Qc8 {[%clk 0:01:21]} 28. f4 {[%clk 0:00:55]}  h6 {[%clk 0:01:12]} 29. fxe5 {[%clk 0:00:41]}  Nxe5 {[%clk 0:01:12]} 30. Nd7 {[%clk 0:00:22]}  Nf3+ {[%clk 0:01:12]} 31. gxf3 {[%clk 0:00:20]}  Qxb7 {[%clk 0:00:59]} 32. Nxf8 {[%clk 0:00:18]}  Rxg5+ {[%clk 0:00:57]} 33. Kf2 {[%clk 0:00:18]}  Qb8 {[%clk 0:00:55]} 34. Qxd4 {[%clk 0:00:02]}  Qh2+ {[%clk 0:00:40]} 35. Ke3 {[%clk 0:00:02]}  Re5+ {[%clk 0:00:40]} 36. Kd3 {[%clk 0:00:02]}  Qe2+ {[%clk 0:00:41]} 37. Kc3 {[%clk 0:00:03]}  Re3+ {[%clk 0:00:41]} 38. Kb4 {[%clk 0:00:03]}  Qb5# {[%clk 0:00:41]} 0-1


[Site "https://www.chess.com"]